fUST/lending_fUST_20250914
["ID","MTS","AMOUNT","RATE_DAILY","PERIOD"]
[385377527,1757800247253,-480.0,0.00024657,3]
[385377528,1757800247263,-1185.28,0.00024657,3]
[385377529,1757800247272,-580.56,0.00024657,3]
[385377530,1757800247281,-480.0,0.00024657,3]
[385377531,1757800247290,-918.26,0.00024657,3]
[385377532,1757800247300,-480.0,0.00024657,3]
[385377533,1757800247309,-4236.96,0.00024657,3]
[385377534,1757800247318,-580.44,0.00024657,3]
[385377535,1757800247327,-480.0,0.00024657,3]
[385377536,1757800247336,-1207.77,0.00024657,3]
[385377537,1757800247347,-2692.28,0.00024657,3]
[385377538,1757800247356,-480.0,0.00024657,3]
[385377539,1757800247365,-5042.18,0.00024657,3]
[385377540,1757800247375,-4521.87,0.00024657,3]
[385377541,1757800247383,-843.45,0.00024657,3]
[385377542,1757800247392,-1785.58603222,0.00024657,3]
[385377543,1757800247405,-1495.50396778,0.00024657,3]
[385377544,1757800247414,-480.0,0.00024657,3]
[385377545,1757800247424,-500.0,0.00024673,2]
[385377546,1757800247434,-500.0,0.00024673,2]
[385377547,1757800247443,-500.0,0.00024673,2]
[385377548,1757800247452,-500.0,0.00024673,2]
[385377549,1757800247462,-500.0,0.00024673,2]
[385377550,1757800247471,-500.0,0.00024673,2]
[385377551,1757800247481,-588.1186626,0.00024673,2]
[385377552,1757800247490,-21987.91566502,0.000247,7]
[385377553,1757800247506,-3386.86433498,0.000247,7]
[385377554,1757800247515,-160.0,0.000247,7]
[385377555,1757800247524,-295.821047,0.00024746,2]
[385377556,1757800247534,-1212.30305758,0.00024779,14]
[385377557,1757800247543,-295.821047,0.0002479,2]
[385377558,1757800247552,-160.0,0.00024891,2]
[385377559,1757800247561,-1798.85524237,0.00024896,2]
[385377560,1757800247574,-152.93600263,0.00024896,2]
[385377561,1757800247583,-2833.35960652,0.000249,2]
[385377569,1757800921935,700.0,0.00027397,120]
[385377571,1757801133891,-200.0,0.0002755,120]
[385377572,1757801134484,-258.0,0.0002755,120]
[385377573,1757801134522,-200.0,0.00027899,120]
[385377574,1757801134585,-258.0,0.00028,120]
[385377575,1757801134619,-200.0,0.00028,120]
[385377576,1757801134649,-3426.0,0.00028,120]
[385377607,1757801432537,-386.37513093,0.00019178,2]
[385377608,1757801432588,-466.53666222,0.00019178,2]
[385377609,1757801432600,-2207.99451736,0.00019178,2]
[385377610,1757801432611,-924.23529052,0.00019178,2]
[385377611,1757801432620,-2738.2137429,0.000199,2]
[385377612,1757801432629,-300.0,0.000211,2]
[385377613,1757801432639,-1382.58413021,0.00021101,2]
[385377614,1757801432650,-561.01946318,0.00021101,2]
[385377616,1757801432661,-973.57,0.00021101,2]
[385377618,1757801432673,-2082.82640661,0.00021101,2]
[385377620,1757801432683,-2738.21374276,0.00021149,2]
[385377622,1757801432694,-2374.53117958,0.00021522,2]
[385377623,1757801432703,-300.0,0.00021522,20]
[385377624,1757801432713,-300.0,0.00021522,20]
[385377625,1757801432722,-300.0,0.00021522,20]
[385377626,1757801432731,-300.0,0.00021522,20]
[385377627,1757801432740,-300.0,0.00021522,20]
[385377628,1757801432750,-300.0,0.00021522,20]
[385377629,1757801432759,-300.0,0.00021522,20]
[385377630,1757801432769,-300.0,0.00021522,20]
[385377631,1757801432779,-300.0,0.00021522,20]
[385377632,1757801432788,-300.0,0.00021522,20]
[385377633,1757801432797,-300.0,0.00021522,20]
[385377634,1757801432807,-300.0,0.00021522,20]
[385377635,1757801432816,-300.0,0.00021522,20]
[385377636,1757801432826,-300.0,0.00021522,20]
[385377637,1757801432835,-300.0,0.00021522,20]
[385377638,1757801432845,-172.974447,0.00021717,2]
[385377639,1757801432854,-600.0,0.00021951,20]
[385377640,1757801432863,-177.264716,0.00022254,2]
[385377641,1757801432873,-2738.21374276,0.00022398,2]
[385377642,1757801432882,-420.0,0.00022949,2]
[385377643,1757801432892,-2270.4543614,0.00023267,2]
[385377645,1757801438433,-300.64449073,0.00023267,2]
[385377646,1757801438445,-1072.70269994,0.00023267,2]
[385377648,1757801438539,-1356.19844793,0.00023267,2]
[385377649,1757801438548,-206.75713695,0.00023547,2]
[385377650,1757801438558,-2738.21374276,0.00023647,2]
[385377651,1757801438567,-3000.0,0.00023733,2]
[385377652,1757801438577,-481.1804697,0.00023917,2]
[385377653,1757801438586,-720.0,0.00024147,20]
[385377654,1757801438595,-656.6692083,0.00024384,2]
[385377655,1757801438604,-389.2045971,0.00024384,2]
[385377656,1757801438613,-389.2045971,0.00024384,2]
[385377657,1757801438623,-389.2045971,0.00024384,2]
[385377658,1757801438632,-387.7337307,0.00024384,2]
[385377659,1757801438641,-160.0,0.00024397,2]
[385377660,1757801438651,-160.0,0.00024412,2]
[385377661,1757801438660,-160.0,0.0002442,2]
[385377662,1757801438670,-206.7571369,0.00024445,2]
[385377663,1757801438679,-300.66487736,0.00024526,2]
[385377664,1757801438688,-241.692,0.00024541,7]
[385377665,1757801438697,-1000.0,0.000246,2]
[385377666,1757801438706,-1000.0,0.000246,2]
[385377667,1757801438716,-1000.0,0.000246,2]
[385377668,1757801438725,-1000.0,0.000246,2]
[385377669,1757801438735,-999.8,0.000246,2]
[385377670,1757801438744,-1829.58552796,0.000246,2]
[385377671,1757801438753,-500.0,0.00024656,2]
[385377672,1757801438762,-480.0,0.00024657,3]
[385377673,1757801438772,-393.05,0.00024657,3]
[385377674,1757801438782,-340.64065777,0.00024657,3]
[385377675,1757801438791,-200.0,0.00024657,3]
[385377676,1757801438802,-587.56,0.00024657,3]
[385377677,1757801438811,-480.0,0.00024657,3]
[385377678,1757801438820,-745.55,0.00024657,3]
[385377679,1757801438830,-480.0,0.00024657,3]
[385377680,1757801438839,-480.0,0.00024657,3]
[385377681,1757801438848,-549.83,0.00024657,3]
[385377682,1757801438858,-480.0,0.00024657,3]
[385377683,1757801438867,-480.0,0.00024657,3]
[385377684,1757801438876,-480.0,0.00024657,3]
[385377685,1757801438885,-480.0,0.00024657,3]
[385377686,1757801438894,-480.0,0.00024657,3]
[385377687,1757801438904,-480.0,0.00024657,3]
[385377688,1757801438913,-480.0,0.00024657,3]
[385377689,1757801438922,-480.0,0.00024657,3]
[385377690,1757801438932,-480.0,0.00024657,3]
[385377691,1757801438941,-216.73690608,0.00024657,3]
[385377692,1757801438951,-480.0,0.00024657,3]
[385377693,1757801438960,-828.31,0.00024657,3]
[385377694,1757801438969,-703.55,0.00024657,3]
[385377695,1757801438979,-797.39,0.00024657,3]
[385377696,1757801438988,-480.0,0.00024657,3]
[385377697,1757801438999,-480.0,0.00024657,3]
[385377698,1757801439010,-480.0,0.00024657,3]
[385377699,1757801439019,-480.0,0.00024657,3]
[385377700,1757801439028,-1707.34,0.00024657,3]
[385377701,1757801439037,-480.0,0.00024657,3]
[385377702,1757801439046,-577.55,0.00024657,3]
[385377703,1757801439055,-480.0,0.00024657,3]
[385377704,1757801439064,-480.0,0.00024657,3]
[385377705,1757801439074,-480.0,0.00024657,3]
[385377706,1757801439083,-480.0,0.00024657,3]
[385377707,1757801439093,-679.92,0.00024657,3]
[385377708,1757801439102,-483.34,0.00024657,3]
[385377709,1757801439111,-860.49,0.00024657,3]
[385377710,1757801439120,-480.0,0.00024657,3]
[385377711,1757801439129,-991.21,0.00024657,3]
[385377712,1757801439139,-480.0,0.00024657,3]
[385377713,1757801439147,-480.0,0.00024657,3]
[385377714,1757801439157,-480.0,0.00024657,3]
[385377715,1757801439166,-1141.74,0.00024657,3]
[385377716,1757801439175,-480.0,0.00024657,3]
[385377717,1757801439184,-480.0,0.00024657,3]
[385377718,1757801439193,-480.0,0.00024657,3]
[385377719,1757801439202,-751.0,0.00024657,3]
[385377720,1757801439211,-480.0,0.00024657,3]
[385377721,1757801439221,-480.0,0.00024657,3]
[385377722,1757801439235,-480.0,0.00024657,3]
[385377723,1757801439244,-480.0,0.00024657,3]
[385377724,1757801439254,-2587.67,0.00024657,3]
[385377725,1757801439263,-480.0,0.00024657,3]
[385377726,1757801439272,-558.4,0.00024657,3]
[385377727,1757801439283,-480.0,0.00024657,3]
[385377728,1757801439292,-480.0,0.00024657,3]
[385377729,1757801439303,-480.0,0.00024657,3]
[385377730,1757801439312,-480.0,0.00024657,3]
[385377731,1757801439321,-480.0,0.00024657,3]
[385377732,1757801439337,-480.0,0.00024657,3]
[385377733,1757801439356,-480.0,0.00024657,3]
[385377734,1757801439367,-619.32,0.00024657,3]
[385377735,1757801439376,-583.24,0.00024657,3]
[385377736,1757801439385,-448.92122393,0.00024657,3]
[385377737,1757801439393,-551.45,0.00024657,3]
[385377738,1757801439402,-806.6,0.00024657,3]
[385377739,1757801439411,-480.0,0.00024657,3]
[385377740,1757801439420,-480.0,0.00024657,3]
[385377741,1757801439429,-480.0,0.00024657,3]
[385377742,1757801439439,-1349.52,0.00024657,3]
[385377743,1757801439448,-847.72,0.00024657,3]
[385377744,1757801439457,-480.0,0.00024657,3]
[385377745,1757801439466,-480.0,0.00024657,3]
[385377746,1757801439475,-480.0,0.00024657,3]
[385377747,1757801439484,-480.0,0.00024657,3]
[385377748,1757801439493,-480.0,0.00024657,3]
[385377749,1757801439502,-480.0,0.00024657,3]
[385377750,1757801439511,-480.0,0.00024657,3]
[385377751,1757801439520,-480.0,0.00024657,3]
[385377752,1757801439529,-573.65301586,0.00024657,3]
[385377753,1757801439539,-480.0,0.00024657,3]
[385377754,1757801439548,-852.78,0.00024657,3]
[385377755,1757801439557,-1322.44,0.00024657,3]
[385377756,1757801439567,-480.0,0.00024657,3]
[385377757,1757801439576,-480.0,0.00024657,3]
[385377758,1757801439585,-480.0,0.00024657,3]
[385377759,1757801439595,-236.57447102,0.00024657,3]
[385377760,1757801439604,-1097.63,0.00024657,3]
[385377761,1757801439613,-480.0,0.00024657,3]
[385377762,1757801439623,-480.0,0.00024657,3]
[385377763,1757801439632,-480.0,0.00024657,3]
[385377764,1757801439641,-480.0,0.00024657,3]
[385377765,1757801439651,-506.1,0.00024657,3]
[385377766,1757801439660,-480.0,0.00024657,3]
[385377767,1757801439669,-480.0,0.00024657,3]
[385377768,1757801439679,-296.81562345,0.00024657,3]
[385377769,1757801439688,-836.4,0.00024657,3]
[385377770,1757801439697,-487.27990307,0.00024657,3]
[385377771,1757801439706,-480.0,0.00024657,3]
[385377772,1757801439715,-480.0,0.00024657,3]
[385377773,1757801439724,-480.0,0.00024657,3]
[385377774,1757801439733,-480.0,0.00024657,3]
[385377775,1757801439743,-480.0,0.00024657,3]
[385377776,1757801439753,-620.92,0.00024657,3]
[385377777,1757801439762,-518.77847492,0.00024657,3]
[385377778,1757801439771,-872.22,0.00024657,3]
[385377779,1757801439780,-480.0,0.00024657,3]
[385377780,1757801439789,-741.83,0.00024657,3]
[385377781,1757801439798,-5608.83,0.00024657,3]
[385377782,1757801439807,-480.0,0.00024657,3]
[385377783,1757801439817,-557.1,0.00024657,3]
[385377784,1757801439826,-901.21,0.00024657,3]
[385377785,1757801439835,-480.0,0.00024657,3]
[385377786,1757801439845,-4456.04,0.00024657,3]
[385377788,1757801439854,-617.16,0.00024657,3]
[385377789,1757801439863,-480.0,0.00024657,3]
[385377790,1757801439872,-932.46,0.00024657,3]
[385377791,1757801439881,-480.0,0.00024657,3]
[385377792,1757801439890,-515.86,0.00024657,3]
[385377793,1757801439900,-569.76,0.00024657,3]
[385377794,1757801439909,-658.07,0.00024657,3]
[385377795,1757801439918,-946.49,0.00024657,3]
[385377796,1757801439927,-16357.81,0.00024657,3]
[385377797,1757801439936,-480.0,0.00024657,3]
[385377798,1757801439945,-480.0,0.00024657,3]
[385377799,1757801439955,-525.58,0.00024657,3]
[385377800,1757801439964,-1558.55,0.00024657,3]
[385377801,1757801439973,-480.0,0.00024657,3]
[385377802,1757801439983,-2628.66,0.00024657,3]
[385377804,1757801439992,-978.54,0.00024657,3]
[385377805,1757801440001,-480.0,0.00024657,3]
[385377806,1757801440010,-3649.75,0.00024657,3]
[385377807,1757801440020,-945.6,0.00024657,3]
[385377808,1757801440029,-964.38,0.00024657,3]
[385377809,1757801440038,-1556.5,0.00024657,3]
[385377810,1757801440048,-5365.74,0.00024657,3]
[385377811,1757801440057,-1157.25,0.00024657,3]
[385377812,1757801440067,-1285.5,0.00024657,3]
[385377813,1757801440076,-480.0,0.00024657,3]
[385377814,1757801440086,-584.93,0.00024657,3]
[385377815,1757801440094,-1054.1,0.00024657,3]
[385377817,1757801440104,-834.6,0.00024657,3]
[385377819,1757801440113,-524.45,0.00024657,3]
[385377821,1757801440122,-528.51,0.00024657,3]
[385377823,1757801440131,-480.0,0.00024657,3]
[385377824,1757801440140,-480.0,0.00024657,3]
[385377825,1757801440149,-1757.16,0.00024657,3]
[385377826,1757801440158,-480.0,0.00024657,3]
[385377827,1757801440167,-480.0,0.00024657,3]
[385377828,1757801440176,-1413.44,0.00024657,3]
[385377829,1757801440185,-480.0,0.00024657,3]
[385377830,1757801440194,-480.0,0.00024657,3]
[385377831,1757801440203,-3962.76,0.00024657,3]
[385377832,1757801440213,-480.0,0.00024657,3]
[385377833,1757801440222,-975.19,0.00024657,3]
[385377834,1757801440235,-680.89,0.00024657,3]
[385377835,1757801440244,-708.55,0.00024657,3]
[385377836,1757801440253,-4764.00125969,0.00024657,3]
[385377842,1757801444400,-160.0,0.00024405,2]
[385377843,1757801444410,-30301.01874031,0.00024657,3]
[385377844,1757801444420,-2607.7,0.00024657,3]
[385377845,1757801444431,-480.0,0.00024657,3]
[385377846,1757801444441,-609.88,0.00024657,3]
[385377847,1757801444451,-1916.95,0.00024657,3]
[385377848,1757801444460,-1798.04,0.00024657,3]
[385377849,1757801444471,-480.0,0.00024657,3]
[385377850,1757801444485,-480.0,0.00024657,3]
[385377851,1757801444498,-1269.94,0.00024657,3]
[385377852,1757801444510,-480.0,0.00024657,3]
[385377853,1757801444520,-620.39,0.00024657,3]
[385377854,1757801444531,-4048.08,0.00024657,3]
[385377855,1757801444541,-640.49,0.00024657,3]
[385377856,1757801444552,-1159.23,0.00024657,3]
[385377857,1757801444561,-574.95,0.00024657,3]
[385377858,1757801444570,-3472.05,0.00024657,3]
[385377859,1757801444579,-235.07993487,0.00024657,3]
[385377897,1757801446643,-324.65567513,0.00024657,3]
[385377898,1757801446655,-322.34432487,0.00024657,3]
[385377899,1757801446666,-7479.13006513,0.00024657,3]
[385377900,1757801446676,-480.0,0.00024657,3]
[385377901,1757801446685,-586.15,0.00024657,3]
[385377902,1757801446693,-480.0,0.00024657,3]
[385377903,1757801446702,-579.75,0.00024657,3]
[385377904,1757801446711,-480.0,0.00024657,3]
[385377905,1757801446720,-4197.09,0.00024657,3]
[385377906,1757801446729,-1594.64,0.00024657,3]
[385377907,1757801446738,-480.0,0.00024657,3]
[385377908,1757801446747,-8693.19,0.00024657,3]
[385377909,1757801446755,-519.98,0.00024657,3]
[385377910,1757801446765,-1645.77,0.00024657,3]
[385377911,1757801446773,-480.0,0.00024657,3]
[385377912,1757801446783,-480.0,0.00024657,3]
[385377913,1757801446792,-621.55,0.00024657,3]
[385377914,1757801446801,-2804.69,0.00024657,3]
[385377915,1757801446810,-571.86,0.00024657,3]
[385377916,1757801446819,-6038.61,0.00024657,3]
[385377917,1757801446829,-752.33,0.00024657,3]
[385377918,1757801446838,-1501.59,0.00024657,3]
[385377919,1757801446847,-556.37,0.00024657,3]
[385377921,1757801446856,-480.0,0.00024657,3]
[385377922,1757801446865,-1135.9,0.00024657,3]
[385377923,1757801446874,-1681.98,0.00024657,3]
[385377924,1757801446883,-480.0,0.00024657,3]
[385377925,1757801446892,-623.12513236,0.00024657,3]
[385377926,1757801446901,-480.0,0.00024657,3]
[385377927,1757801446910,-900.0,0.00024657,3]
[385377928,1757801446919,-512.63,0.00024657,3]
[385377929,1757801446930,-1157.45,0.00024657,3]
[385377930,1757801446940,-2600.1,0.00024657,3]
[385377931,1757801446949,-484.02,0.00024657,3]
[385377932,1757801446959,-480.0,0.00024657,3]
[385377934,1757801446969,-241.88800298,0.00024657,3]
[385377936,1757801446978,-4988.37,0.00024657,3]
[385377938,1757801446987,-480.0,0.00024657,3]
[385377940,1757801446996,-3152.62,0.00024657,3]
[385377942,1757801447005,-556.25,0.00024657,3]
[385377944,1757801447014,-480.0,0.00024657,3]
[385377946,1757801447024,-480.0,0.00024657,3]
[385377947,1757801447034,-5375.13,0.00024657,3]
[385377948,1757801447043,-161.7920066,0.00024658,2]
[385377949,1757801447052,-295.821047,0.00024658,2]
[385377950,1757801447061,-584.4874247,0.00024658,2]
[385377951,1757801447070,-161.7920066,0.00024658,2]
[385377952,1757801447080,-295.821047,0.00024658,2]
[385377953,1757801447089,-584.4874247,0.00024658,2]
[385377954,1757801447099,-295.821047,0.00024658,2]
[385377955,1757801447108,-161.7920066,0.00024658,2]
[385377956,1757801447118,-584.4874247,0.00024658,2]
[385377957,1757801447127,-161.7920066,0.00024658,2]
[385377958,1757801447137,-295.821047,0.00024658,2]
[385377959,1757801447147,-584.4874247,0.00024658,2]
[385377960,1757801447157,-161.1410676,0.00024658,2]
[385377961,1757801447167,-271.1820916,0.00024658,2]
[385377962,1757801447177,-166.9941402,0.00024658,2]
[385377963,1757801447186,-188.5028093,0.00024658,2]
[385377964,1757801447195,-500.0,0.00024673,2]
[385377965,1757801447204,-500.0,0.00024673,2]
[385377966,1757801447213,-500.0,0.00024673,2]
[385377967,1757801447223,-310.16820964,0.00024673,2]
[385377968,1757801447236,-500.0,0.00024673,2]
[385377969,1757801447246,-500.0,0.00024673,2]
[385377970,1757801447255,-392.0791084,0.00024673,2]
[385377971,1757801447266,-3957.5799714,0.00024687,2]
[385377972,1757801447277,-1000.0,0.000247,2]
[385377973,1757801447288,-1000.0,0.000247,2]
[385377974,1757801447299,-1000.0,0.000247,2]
[385377975,1757801447310,-1000.0,0.000247,2]
[385377976,1757801447321,-1000.0,0.000247,2]
[385377977,1757801447333,-999.8,0.000248,2]
[385377978,1757801447342,-336.0,0.0002482,2]
[385377979,1757801447352,-188.5028093,0.00024822,2]
[385377980,1757801447361,-188.5028093,0.00024822,2]
[385377981,1757801447371,-188.5028093,0.00024822,2]
[385377982,1757801447380,-188.5028093,0.00024822,2]
[385377983,1757801447390,-3000.0,0.00024829,2]
[385377984,1757801447400,-7669.314539,0.0002489,2]
[385377985,1757801447411,-2738.21374276,0.00024896,2]
[385377986,1757801447421,-12704.15818554,0.000249,2]
[385378068,1757802632725,-982.98508551,0.000199,2]
[385378075,1757802632787,-1282.52636679,0.000199,2]
[385378078,1757802632798,-999.0,0.00021,2]
[385378080,1757802632808,-2265.5114523,0.00021149,2]
[385378082,1757802632819,-2265.5114523,0.00022398,2]
[385378084,1757802632830,-500.0,0.00023127,2]
[385378086,1757802632841,-2265.5114523,0.00023647,2]
[385378088,1757802632852,-2800.0,0.00023733,2]
[385378091,1757802632864,-155.06785271,0.0002401,2]
[385378093,1757802632875,-701.9944843,0.00024104,2]
[385378095,1757802632886,-770.0,0.00024109,2]
[385378097,1757802632897,-7297.2612968,0.0002411,2]
[385378100,1757802632919,-35443.97207838,0.0002411,2]
[385378103,1757802632934,-590.6710272,0.0002411,2]
[385378105,1757802632946,-323.1991578,0.0002411,2]
[385378107,1757802632956,-160.0,0.00024149,2]
[385378109,1757802632967,-738.78198533,0.000242,2]
[385378112,1757802632980,-1893.64563917,0.00024462,2]
[385378114,1757802632993,-213.14505702,0.00024473,2]
[385378116,1757802633005,-193.353,0.0002454,7]
[385378118,1757802633016,-151.66680255,0.00024542,2]
[385378120,1757802633028,-500.0,0.00024556,2]
[385378122,1757802633039,-500.0,0.00024556,2]
[385378125,1757802633050,-500.0,0.00024556,2]
[385378127,1757802633062,-500.0,0.00024556,2]
[385378129,1757802633074,-500.0,0.00024556,2]
[385378131,1757802633086,-500.0,0.00024556,2]
[385378133,1757802633099,-500.0,0.00024556,2]
[385378136,1757802633110,-500.0,0.00024556,2]
[385378138,1757802633122,-500.0,0.00024556,2]
[385378140,1757802633133,-500.0,0.00024556,2]
[385378142,1757802633145,-423.25047318,0.00024556,2]
[385378144,1757802633157,-464.6399541,0.00024556,2]
[385378147,1757802633168,-394.7408449,0.00024556,2]
[385378149,1757802633179,-374.73461661,0.00024556,2]
[385378151,1757802633191,-500.0,0.00024556,2]
[385378153,1757802633203,-500.0,0.00024556,2]
[385378155,1757802633214,-117343.67378025,0.00024557,2]
[385378357,1757802638538,-325.76237576,0.00024557,2]
[385378358,1757802638596,-123363.24832021,0.00024557,2]
[385378359,1757802638605,-213.145057,0.00024563,2]
[385378360,1757802638614,-500.0,0.00024573,2]
[385378361,1757802638623,-509.92163713,0.00024573,2]
[385378362,1757802638633,-500.0,0.00024573,2]
[385378363,1757802638642,-500.0,0.00024573,2]
[385378364,1757802638652,-500.0,0.00024573,2]
[385378365,1757802638662,-599.88,0.000246,2]
[385378367,1757802638671,-188.5028093,0.000246,2]
[385378369,1757802638681,-213.145057,0.00024652,2]
[385378371,1757802638690,-1226.65074277,0.00024657,2]
[385378374,1757802638700,-480.0,0.00024657,3]
[385378376,1757802638709,-480.0,0.00024657,3]
[385378378,1757802638719,-480.0,0.00024657,3]
[385378379,1757802638730,-480.0,0.00024657,3]
[385378380,1757802638740,-480.0,0.00024657,3]
[385378381,1757802638749,-480.0,0.00024657,3]
[385378382,1757802638759,-480.0,0.00024657,3]
[385378383,1757802638769,-480.0,0.00024657,3]
[385378384,1757802638778,-480.0,0.00024657,3]
[385378385,1757802638787,-480.0,0.00024657,3]
[385378386,1757802638796,-480.0,0.00024657,3]
[385378387,1757802638805,-606.17015227,0.00024657,3]
[385378388,1757802638814,-524.97860822,0.00024657,3]
[385378389,1757802638823,-480.0,0.00024657,3]
[385378390,1757802638832,-480.0,0.00024657,3]
[385378391,1757802638841,-480.0,0.00024657,3]
[385378392,1757802638850,-480.0,0.00024657,3]
[385378393,1757802638859,-480.0,0.00024657,3]
[385378394,1757802638869,-480.0,0.00024657,3]
[385378395,1757802638878,-154.290052,0.00024657,7]
[385378396,1757802638887,-151.0,0.00024657,7]
[385378397,1757802638897,-638.94,0.00024657,3]
[385378398,1757802638906,-480.0,0.00024657,3]
[385378399,1757802638915,-480.0,0.00024657,3]
[385378400,1757802638924,-480.0,0.00024657,3]
[385378401,1757802638937,-480.0,0.00024657,3]
[385378402,1757802638946,-500.0,0.00024657,3]
[385378403,1757802638955,-480.0,0.00024657,3]
[385378404,1757802638964,-151.0,0.00024657,7]
[385378405,1757802638974,-255.83152012,0.00024657,3]
[385378406,1757802638984,-151.0,0.00024657,7]
[385378407,1757802638994,-480.0,0.00024657,3]
[385378408,1757802639003,-480.0,0.00024657,3]
[385378409,1757802639014,-480.0,0.00024657,3]
[385378410,1757802639024,-480.0,0.00024657,3]
[385378411,1757802639033,-480.0,0.00024657,3]
[385378412,1757802639042,-480.0,0.00024657,3]
[385378413,1757802639052,-480.0,0.00024657,3]
[385378414,1757802639061,-1716.2,0.00024657,3]
[385378415,1757802639070,-151.0,0.00024657,7]
[385378416,1757802639079,-151.0,0.00024657,7]
[385378417,1757802639088,-481.25129519,0.00024657,3]
[385378418,1757802639097,-633.48,0.00024657,3]
[385378419,1757802639106,-480.0,0.00024657,3]
[385378420,1757802639115,-245.80634212,0.00024657,2]
[385378421,1757802639129,-480.0,0.00024657,3]
[385378422,1757802639138,-480.0,0.00024657,3]
[385378423,1757802639147,-480.0,0.00024657,3]
[385378424,1757802639156,-904.64,0.00024657,3]
[385378425,1757802639166,-691.59,0.00024657,3]
[385378426,1757802639175,-1029.91,0.00024657,3]
[385378427,1757802639184,-480.0,0.00024657,3]
[385378428,1757802639193,-677.53,0.00024657,3]
[385378429,1757802639202,-480.0,0.00024657,3]
[385378430,1757802639211,-480.0,0.00024657,3]
[385378431,1757802639220,-594.77,0.00024657,3]
[385378432,1757802639229,-1174.17,0.00024657,3]
[385378433,1757802639238,-480.0,0.00024657,3]
[385378434,1757802639248,-799.71,0.00024657,3]
[385378435,1757802639257,-230.74025366,0.00024657,3]
[385378436,1757802639267,-480.0,0.00024657,3]
[385378437,1757802639276,-155.19856939,0.00024657,3]
[385378438,1757802639286,-480.0,0.00024657,3]
[385378439,1757802639296,-480.0,0.00024657,3]
[385378440,1757802639305,-480.0,0.00024657,3]
[385378441,1757802639315,-480.0,0.00024657,3]
[385378442,1757802639324,-480.0,0.00024657,3]
[385378443,1757802639335,-480.0,0.00024657,3]
[385378444,1757802639344,-480.0,0.00024657,3]
[385378445,1757802639353,-480.0,0.00024657,3]
[385378446,1757802639363,-480.0,0.00024657,3]
[385378447,1757802639372,-480.0,0.00024657,3]
[385378448,1757802639382,-480.0,0.00024657,3]
[385378449,1757802639395,-151.0,0.00024657,7]
[385378450,1757802639405,-151.0,0.00024657,7]
[385378451,1757802639416,-480.0,0.00024657,3]
[385378452,1757802639425,-2559.85,0.00024657,3]
[385378453,1757802639436,-480.0,0.00024657,3]
[385378454,1757802639445,-480.0,0.00024657,3]
[385378455,1757802639454,-480.0,0.00024657,3]
[385378456,1757802639464,-480.0,0.00024657,3]
[385378457,1757802639473,-480.0,0.00024657,3]
[385378458,1757802639483,-480.0,0.00024657,3]
[385378459,1757802639492,-555.13,0.00024657,3]
[385378460,1757802639501,-151.0,0.00024657,7]
[385378461,1757802639510,-828.0,0.00024657,3]
[385378462,1757802639519,-480.0,0.00024657,3]
[385378463,1757802639528,-151.0,0.00024657,7]
[385378464,1757802639538,-151.0,0.00024657,7]
[385378465,1757802639547,-480.0,0.00024657,3]